[Event "Late-Titled-Tuesday-Blitz-June-25-2024"]
[Site "Chess.com"]
[Date "2024.06.25"]
[Round "7"]
[White "campochess"]
[Black "RodriQA"]
[Result "1-0"]
[WhiteElo "2228"]
[BlackElo "2395"]
[TimeControl "180+1"]
[EndTime "15:16:17 PDT"]
[Termination "campochess won on time"]

1. e4 {[%clk 0:02:58.9]} 1... b6 {[%clk 0:02:59]} 2. d4 {[%clk 0:02:58.5]} 2...
Bb7 {[%clk 0:02:58.8]} 3. Nc3 {[%clk 0:02:58.4]} 3... e6 {[%clk 0:02:59]} 4. a3
{[%clk 0:02:58.5]} 4... Nf6 {[%clk 0:02:58.8]} 5. f3 {[%clk 0:02:58.4]} 5... d5
{[%clk 0:02:58.8]} 6. Bg5 {[%clk 0:02:54.3]} 6... Be7 {[%clk 0:02:55]} 7. e5
{[%clk 0:02:54.2]} 7... Nfd7 {[%clk 0:02:54.9]} 8. Be3 {[%clk 0:02:50.8]} 8...
c5 {[%clk 0:02:53.6]} 9. f4 {[%clk 0:02:41.1]} 9... g6 {[%clk 0:02:43.5]} 10.
Nf3 {[%clk 0:02:40.4]} 10... Nc6 {[%clk 0:02:43.3]} 11. Ne2 {[%clk 0:02:37.5]}
11... cxd4 {[%clk 0:02:42.9]} 12. Nexd4 {[%clk 0:02:36.4]} 12... Rc8 {[%clk
0:02:33.3]} 13. Nxc6 {[%clk 0:02:32.8]} 13... Rxc6 {[%clk 0:02:27.7]} 14. Bd3
{[%clk 0:02:32.3]} 14... a6 {[%clk 0:02:25.2]} 15. O-O {[%clk 0:02:31.7]} 15...
Nc5 {[%clk 0:02:25.4]} 16. Nd4 {[%clk 0:02:29]} 16... Rc8 {[%clk 0:02:21.8]} 17.
Rc1 {[%clk 0:02:18.6]} 17... O-O {[%clk 0:02:20.8]} 18. Qe1 {[%clk 0:02:13.2]}
18... b5 {[%clk 0:02:16.4]} 19. Kh1 {[%clk 0:02:07.6]} 19... Ne4 {[%clk
0:02:14.2]} 20. Nf3 {[%clk 0:01:56.6]} 20... Qc7 {[%clk 0:01:45.3]} 21. Bxe4
{[%clk 0:01:48.8]} 21... dxe4 {[%clk 0:01:44.8]} 22. Nd4 {[%clk 0:01:44.6]}
22... Bd5 {[%clk 0:01:43]} 23. c3 {[%clk 0:01:44.3]} 23... Qb7 {[%clk
0:01:37.8]} 24. h4 {[%clk 0:01:36.5]} 24... h5 {[%clk 0:01:31.6]} 25. Qg3 {[%clk
0:01:33.3]} 25... Kh7 {[%clk 0:01:27.9]} 26. Kh2 {[%clk 0:01:33]} 26... a5
{[%clk 0:01:14]} 27. Qh3 {[%clk 0:01:30.9]} 27... b4 {[%clk 0:01:00.7]} 28. axb4
{[%clk 0:01:29.4]} 28... axb4 {[%clk 0:01:00.8]} 29. Bd2 {[%clk 0:01:29.2]}
29... Kg7 {[%clk 0:00:44.4]} 30. Ra1 {[%clk 0:01:25.9]} 30... Rfd8 {[%clk
0:00:34.7]} 31. Ra5 {[%clk 0:01:16.9]} 31... bxc3 {[%clk 0:00:31]} 32. Bxc3
{[%clk 0:01:15.3]} 32... Bb4 {[%clk 0:00:31.2]} 33. Rb5 {[%clk 0:01:11.8]} 33...
Qxb5 {[%clk 0:00:18.1]} 34. Nxb5 {[%clk 0:01:10.9]} 34... Bc4 {[%clk 0:00:18.8]}
35. Nd6 {[%clk 0:01:06.7]} 35... Bxf1 {[%clk 0:00:19]} 36. Nxc8 {[%clk
0:01:06.3]} 36... Bxc3 {[%clk 0:00:18.6]} 37. Nd6 {[%clk 0:01:04.7]} 37... Bd2
{[%clk 0:00:14]} 38. Qg3 {[%clk 0:00:59.9]} 38... e3 {[%clk 0:00:12.9]} 39. Qg5
{[%clk 0:00:59.3]} 39... Rf8 {[%clk 0:00:11.1]} 40. f5 {[%clk 0:00:57.9]} 40...
Bd3 {[%clk 0:00:06.3]} 41. Qf6+ {[%clk 0:00:57.3]} 41... Kh7 {[%clk 0:00:05.3]}
42. fxe6 {[%clk 0:00:56.9]} 42... e2 {[%clk 0:00:03.9]} 43. e7 {[%clk 0:00:54]}
43... e1=Q {[%clk 0:00:02.5]} 44. exf8=Q {[%clk 0:00:53.2]} 1-0

[Event "Late-Titled-Tuesday-Blitz-June-25-2024"]
[Site "Chess.com"]
[Date "2024.06.25"]
[Round "7"]
[White "AlexOstrovskiy"]
[Black "AGW2016"]
[Result "1-0"]
[WhiteElo "2718"]
[BlackElo "2558"]
[TimeControl "180+1"]
[EndTime "15:16:18 PDT"]
[Termination "AlexOstrovskiy won by resignation"]

1. e4 {[%clk 0:03:00.9]} 1... e5 {[%clk 0:03:00.2]} 2. Nf3 {[%clk 0:02:58]} 2...
Nc6 {[%clk 0:03:00.6]} 3. Bc4 {[%clk 0:02:57.9]} 3... Bc5 {[%clk 0:03:00.9]} 4.
c3 {[%clk 0:02:58.2]} 4... Nf6 {[%clk 0:03:01.7]} 5. d4 {[%clk 0:02:58.8]} 5...
exd4 {[%clk 0:03:01.9]} 6. cxd4 {[%clk 0:02:59.7]} 6... Bb4+ {[%clk 0:03:02.6]}
7. Nbd2 {[%clk 0:03:00.3]} 7... d5 {[%clk 0:02:57.9]} 8. exd5 {[%clk 0:03:01.2]}
8... Nxd5 {[%clk 0:02:58.5]} 9. O-O {[%clk 0:03:01.1]} 9... O-O {[%clk
0:02:58.5]} 10. a3 {[%clk 0:03:01.6]} 10... Ba5 {[%clk 0:02:56.1]} 11. b4 {[%clk
0:02:51]} 11... Bb6 {[%clk 0:02:56.1]} 12. Qb3 {[%clk 0:02:51.6]} 12... Nce7
{[%clk 0:02:54.4]} 13. Re1 {[%clk 0:02:43.5]} 13... c6 {[%clk 0:02:54.3]} 14.
Ne4 {[%clk 0:02:43.5]} 14... h6 {[%clk 0:02:52.9]} 15. Bb2 {[%clk 0:02:34.7]}
15... Bf5 {[%clk 0:02:48.4]} 16. Nc5 {[%clk 0:02:32]} 16... Qc7 {[%clk
0:02:44.7]} 17. Rac1 {[%clk 0:02:23.5]} 17... Rfe8 {[%clk 0:02:43.2]} 18. Ne5
{[%clk 0:02:21.3]} 18... Rad8 {[%clk 0:02:37.7]} 19. a4 {[%clk 0:01:59]} 19...
a6 {[%clk 0:02:04.9]} 20. h3 {[%clk 0:01:57.3]} 20... Ng6 {[%clk 0:02:02.2]} 21.
Nxg6 {[%clk 0:01:49]} 21... Rxe1+ {[%clk 0:02:02.2]} 22. Rxe1 {[%clk 0:01:49.9]}
22... Bxg6 {[%clk 0:02:02.7]} 23. b5 {[%clk 0:01:41.1]} 23... axb5 {[%clk
0:02:01.1]} 24. axb5 {[%clk 0:01:41.2]} 24... Bxc5 {[%clk 0:01:03.1]} 25. dxc5
{[%clk 0:01:41.2]} 25... Qa5 {[%clk 0:01:03.8]} 26. Rd1 {[%clk 0:01:34.3]} 26...
Re8 {[%clk 0:00:59.5]} 27. Bxd5 {[%clk 0:00:55.8]} 27... cxd5 {[%clk 0:00:57.6]}
28. Bc3 {[%clk 0:00:51.5]} 28... Qc7 {[%clk 0:00:42.5]} 29. Qxd5 {[%clk
0:00:48]} 29... Re2 {[%clk 0:00:29.2]} 30. b6 {[%clk 0:00:41.9]} 30... Qe7
{[%clk 0:00:27.1]} 31. Qd8+ {[%clk 0:00:32.7]} 31... Qxd8 {[%clk 0:00:24.7]} 32.
Rxd8+ {[%clk 0:00:33.6]} 32... Kh7 {[%clk 0:00:25.3]} 33. Rd7 {[%clk 0:00:32.2]}
33... Rc2 {[%clk 0:00:25.2]} 34. Bd4 {[%clk 0:00:20.1]} 34... Rd2 {[%clk
0:00:24.2]} 35. c6 {[%clk 0:00:17.8]} 35... bxc6 {[%clk 0:00:21.7]} 36. b7
{[%clk 0:00:18.7]} 36... Rd1+ {[%clk 0:00:09.4]} 37. Kh2 {[%clk 0:00:18.7]}
37... Rb1 {[%clk 0:00:10.1]} 38. Be5 {[%clk 0:00:12.4]} 38... f6 {[%clk
0:00:09.7]} 39. b8=Q {[%clk 0:00:12.1]} 1-0

[Event "Late-Titled-Tuesday-Blitz-June-25-2024"]
[Site "Chess.com"]
[Date "2024.06.25"]
[Round "7"]
[White "Bilan_Danila"]
[Black "Tigranpatagonian"]
[Result "1-0"]
[WhiteElo "2623"]
[BlackElo "2454"]
[TimeControl "180+1"]
[EndTime "15:16:18 PDT"]
[Termination "Bilan_Danila won on time"]

1. d4 {[%clk 0:03:00.9]} 1... Nf6 {[%clk 0:02:58.9]} 2. Nf3 {[%clk 0:03:00.8]}
2... g6 {[%clk 0:02:58.7]} 3. Bg5 {[%clk 0:02:59.9]} 3... Bg7 {[%clk 0:02:58.7]}
4. c3 {[%clk 0:03:00.6]} 4... O-O {[%clk 0:02:57.9]} 5. Nbd2 {[%clk 0:03:01.1]}
5... d6 {[%clk 0:02:56]} 6. e4 {[%clk 0:03:01.6]} 6... Nc6 {[%clk 0:02:55.3]} 7.
Bc4 {[%clk 0:03:00.8]} 7... e5 {[%clk 0:02:48.6]} 8. O-O {[%clk 0:02:58.3]} 8...
h6 {[%clk 0:02:43.9]} 9. Bh4 {[%clk 0:02:57.3]} 9... Na5 {[%clk 0:02:38.1]} 10.
Bd3 {[%clk 0:02:49.7]} 10... Qe8 {[%clk 0:02:30.4]} 11. Re1 {[%clk 0:02:24.4]}
11... Nh5 {[%clk 0:02:25.5]} 12. dxe5 {[%clk 0:02:12.6]} 12... dxe5 {[%clk
0:02:23.4]} 13. Nc4 {[%clk 0:02:12.3]} 13... Nxc4 {[%clk 0:02:16.4]} 14. Bxc4
{[%clk 0:02:13.2]} 14... Be6 {[%clk 0:02:15.8]} 15. Qb3 {[%clk 0:02:10.4]} 15...
Nf4 {[%clk 0:02:02.7]} 16. Rad1 {[%clk 0:02:00.9]} 16... Rb8 {[%clk 0:01:58.5]}
17. Rd2 {[%clk 0:01:48.9]} 17... b5 {[%clk 0:01:21.6]} 18. Bxe6 {[%clk
0:01:45.6]} 18... Qxe6 {[%clk 0:01:18.4]} 19. Red1 {[%clk 0:01:41.6]} 19... Qg4
{[%clk 0:01:10]} 20. Bg3 {[%clk 0:01:34.9]} 20... Nh3+ {[%clk 0:00:58.7]} 21.
Kh1 {[%clk 0:01:22]} 21... Qxe4 {[%clk 0:00:49.6]} 22. Qd5 {[%clk 0:01:11.7]}
22... Qxd5 {[%clk 0:00:27.5]} 23. Rxd5 {[%clk 0:01:12.6]} 23... Nf4 {[%clk
0:00:18.7]} 24. Rd7 {[%clk 0:00:59.2]} 24... Ne6 {[%clk 0:00:17.6]} 25. Nxe5
{[%clk 0:00:52.4]} 25... Rbd8 {[%clk 0:00:15.4]} 26. Nc6 {[%clk 0:00:44.3]}
26... Rxd7 {[%clk 0:00:15.1]} 27. Rxd7 {[%clk 0:00:45.2]} 27... Re8 {[%clk
0:00:14.1]} 28. h4 {[%clk 0:00:37.3]} 28... f5 {[%clk 0:00:13.2]} 29. Be5 {[%clk
0:00:22.6]} 29... Bxe5 {[%clk 0:00:09.7]} 30. Nxe5 {[%clk 0:00:23.5]} 30... Nc5
{[%clk 0:00:08.6]} 31. Rd5 {[%clk 0:00:24.1]} 31... Ne4 {[%clk 0:00:04.3]} 32.
f3 {[%clk 0:00:24.1]} 32... Nf6 {[%clk 0:00:02.1]} 33. Rxb5 {[%clk 0:00:22.9]}
1-0

[Event "Late-Titled-Tuesday-Blitz-June-25-2024"]
[Site "Chess.com"]
[Date "2024.06.25"]
[Round "7"]
[White "mouseslips_are_the_best"]
[Black "theoneandonlydaaevik"]
[Result "0-1"]
[WhiteElo "2375"]
[BlackElo "2600"]
[TimeControl "180+1"]
[EndTime "15:16:21 PDT"]
[Termination "theoneandonlydaaevik won by resignation"]

1. e4 {[%clk 0:03:00.9]} 1... c6 {[%clk 0:03:00.3]} 2. d4 {[%clk 0:03:00.4]}
2... d5 {[%clk 0:03:00.6]} 3. e5 {[%clk 0:03:00.9]} 3... Bf5 {[%clk 0:03:00.3]}
4. h4 {[%clk 0:03:01.1]} 4... h5 {[%clk 0:03:00.1]} 5. Bd3 {[%clk 0:03:01.3]}
5... Bxd3 {[%clk 0:03:00.4]} 6. Qxd3 {[%clk 0:03:02.2]} 6... Qa5+ {[%clk
0:03:00.4]} 7. Nd2 {[%clk 0:03:01.1]} 7... e6 {[%clk 0:03:00.5]} 8. Nf3 {[%clk
0:03:00.2]} 8... Nh6 {[%clk 0:03:01]} 9. O-O {[%clk 0:02:58]} 9... Nf5 {[%clk
0:03:01.5]} 10. Nb3 {[%clk 0:02:57.5]} 10... Qa6 {[%clk 0:03:01.7]} 11. Qd1
{[%clk 0:02:58]} 11... b6 {[%clk 0:02:57.9]} 12. Bg5 {[%clk 0:02:57.4]} 12... c5
{[%clk 0:02:53.2]} 13. dxc5 {[%clk 0:02:58.3]} 13... Bxc5 {[%clk 0:02:49.5]} 14.
c3 {[%clk 0:02:54.6]} 14... Nc6 {[%clk 0:02:49.5]} 15. Re1 {[%clk 0:02:51.4]}
15... Rc8 {[%clk 0:02:48.1]} 16. Nbd2 {[%clk 0:02:50.4]} 16... Be7 {[%clk
0:01:59.3]} 17. b3 {[%clk 0:02:43.9]} 17... Bxg5 {[%clk 0:01:52.3]} 18. Nxg5
{[%clk 0:02:43.5]} 18... g6 {[%clk 0:01:46.2]} 19. g3 {[%clk 0:02:43.2]} 19...
O-O {[%clk 0:01:45.6]} 20. c4 {[%clk 0:02:41.2]} 20... Rcd8 {[%clk 0:01:41.8]}
21. g4 {[%clk 0:02:35.5]} 21... hxg4 {[%clk 0:01:37.7]} 22. Qxg4 {[%clk
0:02:36.4]} 22... dxc4 {[%clk 0:01:36.9]} 23. Nde4 {[%clk 0:02:28.5]} 23... Nxe5
{[%clk 0:01:29.5]} 24. Nf6+ {[%clk 0:02:26.9]} 24... Kg7 {[%clk 0:01:29.9]} 25.
Rxe5 {[%clk 0:02:22.4]} 25... Kxf6 {[%clk 0:01:30.1]} 26. Rae1 {[%clk
0:02:13.8]} 26... b5 {[%clk 0:01:18.9]} 27. h5 {[%clk 0:02:07.1]} 27... Rd4
{[%clk 0:01:07.1]} 28. Rxf5+ {[%clk 0:01:55.3]} 28... exf5 {[%clk 0:00:59.4]}
29. Qxd4+ {[%clk 0:01:43.5]} 29... Kxg5 {[%clk 0:01:00.3]} 30. Qg7 {[%clk
0:01:21.2]} 30... Qd6 {[%clk 0:00:46.5]} 31. f4+ {[%clk 0:01:13.2]} 31... Kg4
{[%clk 0:00:36.8]} 32. Qh6 {[%clk 0:01:08.2]} 32... Qxf4 {[%clk 0:00:16.4]} 33.
Qxf8 {[%clk 0:01:06.8]} 33... Qg3+ {[%clk 0:00:16.7]} 34. Kf1 {[%clk 0:01:07.3]}
34... Qf3+ {[%clk 0:00:16.9]} 35. Kg1 {[%clk 0:01:07.6]} 35... Kh3 {[%clk
0:00:17.2]} 36. Qa8 {[%clk 0:00:38.2]} 36... Qxa8 {[%clk 0:00:15]} 37. Re3+
{[%clk 0:00:36.6]} 37... Kg4 {[%clk 0:00:15.2]} 38. h6 {[%clk 0:00:37]} 38...
Qh8 {[%clk 0:00:12.9]} 39. Re7 {[%clk 0:00:35.9]} 39... Kg3 {[%clk 0:00:12.3]}
40. Re3+ {[%clk 0:00:36.2]} 40... Kf4 {[%clk 0:00:12.7]} 41. Rh3 {[%clk
0:00:36.7]} 41... Kg4 {[%clk 0:00:12.4]} 42. Kg2 {[%clk 0:00:36.9]} 42... Qb2+
{[%clk 0:00:11.5]} 43. Kf1 {[%clk 0:00:34.7]} 43... Kxh3 {[%clk 0:00:11.8]} 44.
h7 {[%clk 0:00:35.2]} 44... Kg3 {[%clk 0:00:11.2]} 45. Ke1 {[%clk 0:00:35.7]}
45... Kf3 {[%clk 0:00:10.8]} 0-1

[Event "Late-Titled-Tuesday-Blitz-June-25-2024"]
[Site "Chess.com"]
[Date "2024.06.25"]
[Round "7"]
[White "Veleamater"]
[Black "Andrey-Ivanov2011"]
[Result "1-0"]
[WhiteElo "2402"]
[BlackElo "2128"]
[TimeControl "180+1"]
[EndTime "15:16:22 PDT"]
[Termination "Veleamater won by resignation"]

1. g3 {[%clk 0:03:00.9]} 1... d5 {[%clk 0:02:57.9]} 2. Bg2 {[%clk 0:02:58.8]}
2... e5 {[%clk 0:02:54.8]} 3. d3 {[%clk 0:02:59.6]} 3... Nc6 {[%clk 0:02:51.7]}
4. Nf3 {[%clk 0:02:59.5]} 4... Nf6 {[%clk 0:02:50]} 5. O-O {[%clk 0:02:59.5]}
5... Be7 {[%clk 0:02:50.1]} 6. h3 {[%clk 0:02:58.9]} 6... O-O {[%clk 0:02:50.6]}
7. Nc3 {[%clk 0:02:59]} 7... h6 {[%clk 0:02:49.2]} 8. e4 {[%clk 0:02:59.1]} 8...
Be6 {[%clk 0:02:48.9]} 9. Nd2 {[%clk 0:02:57.4]} 9... Qd7 {[%clk 0:02:47.5]} 10.
Kh2 {[%clk 0:02:56.7]} 10... Rad8 {[%clk 0:02:45.8]} 11. f3 {[%clk 0:02:55.9]}
11... Rfe8 {[%clk 0:02:45.4]} 12. f4 {[%clk 0:02:54.6]} 12... exf4 {[%clk
0:02:40]} 13. gxf4 {[%clk 0:02:54.5]} 13... dxe4 {[%clk 0:02:36.3]} 14. dxe4
{[%clk 0:02:54.1]} 14... Bb4 {[%clk 0:02:22.5]} 15. f5 {[%clk 0:02:50.6]} 15...
Qd6+ {[%clk 0:02:20.8]} 16. Kh1 {[%clk 0:02:49.5]} 16... Bc8 {[%clk 0:02:20.2]}
17. Nd5 {[%clk 0:02:37.2]} 17... Bxd2 {[%clk 0:02:14.2]} 18. Qxd2 {[%clk
0:02:29.8]} 18... Nxe4 {[%clk 0:02:13.7]} 19. Bxe4 {[%clk 0:02:28.8]} 19... Rxe4
{[%clk 0:02:10.7]} 20. Nc3 {[%clk 0:02:18.7]} 20... Rd4 {[%clk 0:02:01]} 21. Qg2
{[%clk 0:02:16.7]} 21... Kf8 {[%clk 0:01:47.4]} 22. f6 {[%clk 0:02:12.2]} 22...
gxf6 {[%clk 0:01:33.5]} 23. Bxh6+ {[%clk 0:02:08]} 23... Ke8 {[%clk 0:01:32.9]}
24. Nb5 {[%clk 0:01:58.9]} 24... Qd5 {[%clk 0:01:07.6]} 25. Rae1+ {[%clk
0:01:55]} 25... Kd7 {[%clk 0:01:00.2]} 26. Nxd4 {[%clk 0:01:52.6]} 26... Qxg2+
{[%clk 0:00:59.9]} 27. Kxg2 {[%clk 0:01:52.1]} 27... Nxd4 {[%clk 0:01:00.8]} 28.
Rxf6 {[%clk 0:01:51.4]} 28... c5 {[%clk 0:00:56.1]} 29. Rxf7+ {[%clk 0:01:47.4]}
29... Kc6 {[%clk 0:00:55.8]} 30. c3 {[%clk 0:01:46.7]} 30... Rg8+ {[%clk
0:00:50.6]} 31. Kf2 {[%clk 0:01:45]} 31... Nc2 {[%clk 0:00:45.9]} 32. Rf6+
{[%clk 0:01:43.1]} 32... Kb5 {[%clk 0:00:44.5]} 33. Rh1 {[%clk 0:01:40.5]} 33...
a5 {[%clk 0:00:38.6]} 34. h4 {[%clk 0:01:39.3]} 34... Rh8 {[%clk 0:00:36]} 35.
h5 {[%clk 0:01:38.6]} 35... Bg4 {[%clk 0:00:36.5]} 36. Rh4 {[%clk 0:01:37]}
36... Bd1 {[%clk 0:00:35.5]} 37. Rd6 {[%clk 0:01:32.9]} 37... Na1 {[%clk
0:00:22.8]} 38. Rxd1 {[%clk 0:01:28.9]} 38... Rxh6 {[%clk 0:00:22.5]} 39. Rd2
{[%clk 0:01:20.3]} 39... a4 {[%clk 0:00:18.7]} 40. Rh1 {[%clk 0:01:18.8]} 40...
Kc4 {[%clk 0:00:16.7]} 41. Rxa1 {[%clk 0:01:17.7]} 41... Rxh5 {[%clk 0:00:17.1]}
42. Rg1 {[%clk 0:01:17.5]} 42... Rf5+ {[%clk 0:00:16.9]} 43. Ke3 {[%clk
0:01:17.1]} 43... Re5+ {[%clk 0:00:17.4]} 44. Kf4 {[%clk 0:01:17]} 44... Re8
{[%clk 0:00:17.4]} 45. Rg4 {[%clk 0:01:16.7]} 45... Kb5 {[%clk 0:00:12.6]} 46.
Kf5 {[%clk 0:01:15.4]} 46... Rf8+ {[%clk 0:00:12.4]} 47. Ke6 {[%clk 0:01:15]}
47... Re8+ {[%clk 0:00:12.4]} 48. Kd7 {[%clk 0:01:14.5]} 48... Re3 {[%clk
0:00:12.6]} 49. Kc7 {[%clk 0:01:11]} 49... a3 {[%clk 0:00:12]} 50. c4+ {[%clk
0:01:07.8]} 50... Kb4 {[%clk 0:00:10.8]} 51. bxa3+ {[%clk 0:01:07.7]} 51... Rxa3
{[%clk 0:00:09.5]} 52. Kxb7 {[%clk 0:01:07.4]} 52... Ra5 {[%clk 0:00:06.4]} 53.
Kb6 {[%clk 0:01:06.4]} 53... Ra3 {[%clk 0:00:05.2]} 54. Rb2+ {[%clk 0:01:05.5]}
54... Kc3 {[%clk 0:00:05.4]} 55. Rb3+ {[%clk 0:01:05.6]} 55... Rxb3+ {[%clk
0:00:04.1]} 56. axb3 {[%clk 0:01:06.5]} 56... Kxb3 {[%clk 0:00:05]} 57. Kxc5
{[%clk 0:01:06.6]} 1-0

[Event "Late-Titled-Tuesday-Blitz-June-25-2024"]
[Site "Chess.com"]
[Date "2024.06.25"]
[Round "7"]
[White "XDPS"]
[Black "wonderfultime"]
[Result "0-1"]
[WhiteElo "2828"]
[BlackElo "3051"]
[TimeControl "180+1"]
[EndTime "15:16:24 PDT"]
[Termination "wonderfultime won by resignation"]

1. e4 {[%clk 0:03:00.9]} 1... e5 {[%clk 0:02:56.3]} 2. Nf3 {[%clk 0:03:00.8]}
2... Nc6 {[%clk 0:02:56.9]} 3. Bc4 {[%clk 0:03:01.3]} 3... Bc5 {[%clk
0:02:56.7]} 4. O-O {[%clk 0:03:01.2]} 4... d6 {[%clk 0:02:55.7]} 5. d3 {[%clk
0:03:00.2]} 5... Nf6 {[%clk 0:02:55.8]} 6. c3 {[%clk 0:02:59]} 6... a6 {[%clk
0:02:56.2]} 7. a4 {[%clk 0:02:58.7]} 7... Ba7 {[%clk 0:02:56.4]} 8. Re1 {[%clk
0:02:58.3]} 8... O-O {[%clk 0:02:53.6]} 9. h3 {[%clk 0:02:57.1]} 9... h6 {[%clk
0:02:51.1]} 10. Nbd2 {[%clk 0:02:57]} 10... Nh5 {[%clk 0:02:51.6]} 11. Nf1
{[%clk 0:02:56.8]} 11... Qf6 {[%clk 0:02:51.5]} 12. Be3 {[%clk 0:02:54.4]} 12...
Bxe3 {[%clk 0:02:51.9]} 13. Rxe3 {[%clk 0:02:54.5]} 13... Be6 {[%clk 0:02:48.5]}
14. N3d2 {[%clk 0:02:41.7]} 14... Nf4 {[%clk 0:02:46.1]} 15. Kh2 {[%clk
0:02:35.7]} 15... Rad8 {[%clk 0:02:42.9]} 16. Bxe6 {[%clk 0:02:28.6]} 16... Qxe6
{[%clk 0:02:33.4]} 17. Qb3 {[%clk 0:02:20.5]} 17... d5 {[%clk 0:02:27.4]} 18.
Qc2 {[%clk 0:01:39.1]} 18... f5 {[%clk 0:02:11.8]} 19. Rae1 {[%clk 0:01:36.6]}
19... fxe4 {[%clk 0:02:05.8]} 20. dxe4 {[%clk 0:01:36.6]} 20... d4 {[%clk
0:02:06.5]} 21. Rf3 {[%clk 0:01:32.3]} 21... Kh8 {[%clk 0:02:04.9]} 22. Ng3
{[%clk 0:01:29.5]} 22... dxc3 {[%clk 0:01:38.4]} 23. bxc3 {[%clk 0:01:28.2]}
23... Ne7 {[%clk 0:01:39.1]} 24. Ndf1 {[%clk 0:01:17.4]} 24... Rd7 {[%clk
0:01:17.8]} 25. Rb1 {[%clk 0:01:07.6]} 25... b6 {[%clk 0:01:16.3]} 26. Ne3
{[%clk 0:00:56.1]} 26... Rfd8 {[%clk 0:01:15.1]} 27. Ngf1 {[%clk 0:00:56.4]}
27... Rd3 {[%clk 0:01:11.1]} 28. Rg3 {[%clk 0:00:50.9]} 28... Qc6 {[%clk
0:01:06.7]} 29. Ng4 {[%clk 0:00:37.1]} 29... Qxe4 {[%clk 0:01:02.6]} 30. Rb4
{[%clk 0:00:35.7]} 30... Qe1 {[%clk 0:00:39.1]} 31. Nge3 {[%clk 0:00:24.7]}
31... Rxc3 {[%clk 0:00:26.4]} 32. Qa2 {[%clk 0:00:22.7]} 32... Rxe3 {[%clk
0:00:25.6]} 33. Nxe3 {[%clk 0:00:20.3]} 33... Qxb4 {[%clk 0:00:25.5]} 34. Qf7
{[%clk 0:00:20.5]} 34... Rg8 {[%clk 0:00:22.7]} 35. Ng4 {[%clk 0:00:21.1]} 35...
Qd6 {[%clk 0:00:22]} 36. Qc4 {[%clk 0:00:18.1]} 36... Nf5 {[%clk 0:00:21.1]} 37.
Rf3 {[%clk 0:00:17.6]} 37... Nd4 {[%clk 0:00:21.5]} 38. Re3 {[%clk 0:00:17.6]}
38... Ng6 {[%clk 0:00:18.5]} 39. Qxa6 {[%clk 0:00:17]} 39... h5 {[%clk
0:00:16.4]} 0-1

[Event "Late-Titled-Tuesday-Blitz-June-25-2024"]
[Site "Chess.com"]
[Date "2024.06.25"]
[Round "7"]
[White "Patricius007"]
[Black "grzechu96"]
[Result "0-1"]
[WhiteElo "2584"]
[BlackElo "2779"]
[TimeControl "180+1"]
[EndTime "15:16:28 PDT"]
[Termination "grzechu96 won by resignation"]

1. e4 {[%clk 0:02:55.1]} 1... c5 {[%clk 0:02:59.6]} 2. c3 {[%clk 0:02:54.3]}
2... Nf6 {[%clk 0:02:59.1]} 3. e5 {[%clk 0:02:53.6]} 3... Nd5 {[%clk 0:02:59.4]}
4. Nf3 {[%clk 0:02:52.5]} 4... d6 {[%clk 0:02:58.2]} 5. Bb5+ {[%clk 0:02:51.8]}
5... Bd7 {[%clk 0:02:57.3]} 6. Bc4 {[%clk 0:02:52.4]} 6... Bc6 {[%clk
0:02:53.6]} 7. O-O {[%clk 0:02:49.1]} 7... e6 {[%clk 0:02:53.4]} 8. d4 {[%clk
0:02:46.1]} 8... cxd4 {[%clk 0:02:53.7]} 9. exd6 {[%clk 0:02:43.9]} 9... dxc3
{[%clk 0:02:49.7]} 10. bxc3 {[%clk 0:02:09]} 10... Bxd6 {[%clk 0:02:45.6]} 11.
Nd4 {[%clk 0:01:55.7]} 11... O-O {[%clk 0:02:38]} 12. Nxc6 {[%clk 0:01:49.1]}
12... Nxc6 {[%clk 0:02:37.6]} 13. Bb3 {[%clk 0:01:41.2]} 13... Be5 {[%clk
0:02:33.1]} 14. Qf3 {[%clk 0:01:33.3]} 14... Qc7 {[%clk 0:02:24.4]} 15. g3
{[%clk 0:01:30.5]} 15... Rad8 {[%clk 0:02:22.6]} 16. Ba3 {[%clk 0:01:29]} 16...
Rfe8 {[%clk 0:02:22.2]} 17. Rd1 {[%clk 0:01:18.6]} 17... Bf6 {[%clk 0:01:47.6]}
18. Bb2 {[%clk 0:00:44]} 18... Ne5 {[%clk 0:01:46.6]} 19. Qe2 {[%clk 0:00:41.7]}
19... Nb6 {[%clk 0:01:42]} 20. Nd2 {[%clk 0:00:40.9]} 20... Nd3 {[%clk 0:01:42]}
21. Ne4 {[%clk 0:00:40.2]} 21... Nxb2 {[%clk 0:01:33.1]} 22. Nxf6+ {[%clk
0:00:40.5]} 22... gxf6 {[%clk 0:01:33.9]} 23. Qxb2 {[%clk 0:00:40.7]} 23...
Rxd1+ {[%clk 0:01:29.3]} 24. Rxd1 {[%clk 0:00:41.6]} 24... Rd8 {[%clk
0:01:29.9]} 25. Rxd8+ {[%clk 0:00:39.9]} 25... Qxd8 {[%clk 0:01:30.8]} 26. Qe2
{[%clk 0:00:39.1]} 26... f5 {[%clk 0:01:23.6]} 27. Qe5 {[%clk 0:00:37.6]} 27...
Nd7 {[%clk 0:00:53.2]} 28. Qd4 {[%clk 0:00:36.9]} 28... a6 {[%clk 0:00:46.3]}
29. h4 {[%clk 0:00:33.9]} 29... Qe7 {[%clk 0:00:43.1]} 30. Bd1 {[%clk
0:00:25.4]} 30... h6 {[%clk 0:00:40.9]} 31. Bf3 {[%clk 0:00:25.8]} 31... Nc5
{[%clk 0:00:36.9]} 32. Kg2 {[%clk 0:00:22.3]} 32... b6 {[%clk 0:00:27.2]} 33.
Qb4 {[%clk 0:00:20.3]} 33... Qd6 {[%clk 0:00:25.6]} 34. a4 {[%clk 0:00:19.6]}
34... a5 {[%clk 0:00:25.5]} 35. Qb5 {[%clk 0:00:18.2]} 35... Kg7 {[%clk
0:00:25.6]} 36. Qc4 {[%clk 0:00:18]} 36... Qd7 {[%clk 0:00:24.2]} 37. Qd4+
{[%clk 0:00:15.5]} 37... Qxd4 {[%clk 0:00:24.2]} 38. cxd4 {[%clk 0:00:09.5]}
38... Nxa4 {[%clk 0:00:24.7]} 39. d5 {[%clk 0:00:08.2]} 39... exd5 {[%clk
0:00:21.6]} 40. Bxd5 {[%clk 0:00:09.1]} 40... Nc3 {[%clk 0:00:22.2]} 41. Bb3
{[%clk 0:00:07.3]} 41... a4 {[%clk 0:00:22.6]} 42. Bc4 {[%clk 0:00:07.8]} 42...
b5 {[%clk 0:00:22.8]} 0-1